fUSD/lending_fUSD_20250202
["ID","MTS","AMOUNT","RATE_DAILY","PERIOD"]
[351273969,1738505451312,-500.0,0.00011095,2]
[351273970,1738505451324,-500.0,0.00011095,2]
[351273971,1738505451334,-500.0,0.00011095,2]
[351273972,1738505451344,-500.0,0.00011095,2]
[351273973,1738505451353,-500.0,0.00011095,2]
[351273974,1738505451363,-500.0,0.00011095,2]
[351273975,1738505451373,-505.97719316,0.00011095,2]
[351273976,1738505451383,-500.0,0.00011095,2]
[351273977,1738505451392,-533.43470028,0.00011095,2]
[351273978,1738505451402,-501.4047249,0.00011095,2]
[351273979,1738505451412,-661.86,0.00011095,2]
[351273980,1738505451422,-552.57,0.00011095,2]
[351273981,1738505451431,-512.60455729,0.00011095,2]
[351273982,1738505451441,-3015.63,0.00011095,2]
[351273983,1738505451452,-516.40131654,0.00011095,2]
[351273984,1738505451463,-500.0,0.00011095,2]
[351273985,1738505451473,-500.0,0.00011095,2]
[351273986,1738505451483,-500.0,0.00011095,2]
[351273987,1738505451493,-635.12,0.00011095,2]
[351273988,1738505451504,-511.08,0.00011095,2]
[351273989,1738505451516,-1112.86,0.00011095,2]
[351273990,1738505451526,-910.85,0.00011095,2]
[351273991,1738505451537,-500.0,0.00011095,2]
[351273992,1738505451548,-500.0,0.00011095,2]
[351273993,1738505451560,-500.0,0.00011095,2]
[351273994,1738505451570,-500.0,0.00011095,2]
[351273995,1738505451580,-738.14,0.00011095,2]
[351273996,1738505451590,-500.0,0.00011095,2]
[351273997,1738505451605,-500.0,0.00011095,2]
[351273998,1738505451616,-504.46000253,0.00011095,2]
[351273999,1738505451626,-1482.76,0.00011095,2]
[351274000,1738505451636,-500.0,0.00011095,2]
[351274001,1738505451645,-500.0,0.00011095,2]
[351274002,1738505451655,-500.0,0.00011095,2]
[351274003,1738505451665,-500.0,0.00011095,2]
[351274004,1738505451675,-545.77,0.00011095,2]
[351274005,1738505451686,-500.0,0.00011095,2]
[351274006,1738505451696,-735.2,0.00011095,2]
[351274007,1738505451706,-500.0,0.00011095,2]
[351274008,1738505451716,-717.38,0.00011095,2]
[351274009,1738505451726,-500.0,0.00011095,2]
[351274010,1738505451736,-501.99285342,0.00011095,2]
[351274011,1738505451746,-500.0,0.00011095,2]
[351274012,1738505451757,-500.0,0.00011095,2]
[351274013,1738505451767,-500.0,0.00011095,2]
[351274014,1738505451777,-500.0,0.00011095,2]
[351274015,1738505451787,-2333.39,0.00011095,2]
[351274016,1738505451797,-500.0,0.00011095,2]
[351274017,1738505451807,-500.0,0.00011095,2]
[351274018,1738505451817,-618.28,0.00011095,2]
[351274019,1738505451828,-500.0,0.00011095,2]
[351274020,1738505451838,-500.0,0.00011095,2]
[351274021,1738505451849,-500.0,0.00011095,2]
[351274022,1738505451860,-500.0,0.00011095,2]
[351274023,1738505451871,-500.0,0.00011095,2]
[351274024,1738505451881,-500.0,0.00011095,2]
[351274025,1738505451891,-2305.89,0.00011095,2]
[351274026,1738505451901,-500.0,0.00011095,2]
[351274027,1738505451911,-703.3,0.00011095,2]
[351274028,1738505451921,-2217.46,0.00011095,2]
[351274029,1738505451931,-573.42,0.00011095,2]
[351274030,1738505451942,-500.0,0.00011095,2]
[351274031,1738505451951,-500.0,0.00011095,2]
[351274032,1738505451961,-500.0,0.00011095,2]
[351274033,1738505451971,-500.0,0.00011095,2]
[351274034,1738505451981,-2053.36,0.00011095,2]
[351274035,1738505451991,-1106.04,0.00011095,2]
[351274036,1738505452001,-2139.13,0.00011095,2]
[351274037,1738505452011,-500.0,0.00011095,2]
[351274038,1738505452021,-500.0,0.00011095,2]
[351274039,1738505452031,-500.0,0.00011095,2]
[351274040,1738505452041,-1316.15,0.00011095,2]
[351274041,1738505452052,-500.0,0.00011095,2]
[351274042,1738505452063,-500.0,0.00011095,2]
[351274043,1738505452073,-500.0,0.00011095,2]
[351274044,1738505452082,-500.0,0.00011095,2]
[351274045,1738505452093,-500.0,0.00011095,2]
[351274046,1738505452103,-500.0,0.00011095,2]
[351274047,1738505452113,-500.0,0.00011095,2]
[351274048,1738505452123,-548.83,0.00011095,2]
[351274049,1738505452134,-427.89731216,0.00011095,2]
[351274050,1738505452143,-553.21,0.00011095,2]
[351274051,1738505452153,-500.0,0.00011095,2]
[351274052,1738505452163,-500.0,0.00011095,2]
[351274053,1738505452172,-525.3,0.00011095,2]
[351274054,1738505452183,-500.0,0.00011095,2]
[351274055,1738505452193,-500.0,0.00011095,2]
[351274056,1738505452202,-500.0,0.00011095,2]
[351274057,1738505452212,-2325.54,0.00011095,2]
[351274058,1738505452222,-1109.74,0.00011095,2]
[351274059,1738505452231,-500.44,0.00011095,2]
[351274060,1738505452241,-681.73,0.00011095,2]
[351274061,1738505452251,-500.0,0.00011095,2]
[351274062,1738505452261,-500.0,0.00011095,2]
[351274063,1738505452271,-500.0,0.00011095,2]
[351274064,1738505452280,-677.93,0.00011095,2]
[351274065,1738505452290,-560.01041777,0.00011095,2]
[351274066,1738505452300,-513.34,0.00011095,2]
[351274067,1738505452311,-500.0,0.00011095,2]
[351274068,1738505452321,-500.0,0.00011095,2]
[351274069,1738505452331,-500.0,0.00011095,2]
[351274070,1738505452341,-1154.2,0.00011095,2]
[351274071,1738505452351,-2022.69,0.00011095,2]
[351274072,1738505452361,-500.0,0.00011095,2]
[351274073,1738505452371,-500.0,0.00011095,2]
[351274074,1738505452381,-500.0,0.00011095,2]
[351274075,1738505452391,-685.35,0.00011095,2]
[351274076,1738505452401,-500.0,0.00011095,2]
[351274077,1738505452411,-500.0,0.00011095,2]
[351274078,1738505452421,-500.0,0.00011095,2]
[351274079,1738505452431,-500.0,0.00011095,2]
[351274080,1738505452441,-500.0,0.00011095,2]
[351274081,1738505452451,-500.0,0.00011095,2]
[351274082,1738505452461,-500.0,0.00011095,2]
[351274083,1738505452471,-500.0,0.00011095,2]
[351274084,1738505452481,-500.0,0.00011095,2]
[351274085,1738505452492,-500.0,0.00011095,2]
[351274086,1738505452503,-550.64,0.00011095,2]
[351274087,1738505452519,-1342.11,0.00011095,2]
[351274088,1738505452532,-500.0,0.00011095,2]
[351274089,1738505452544,-2093.39,0.00011095,2]
[351274090,1738505452555,-366.90465266,0.00011095,2]
[351274091,1738505452565,-500.0,0.00011095,2]
[351274092,1738505452575,-880.18,0.00011095,2]
[351274093,1738505452585,-1643.92,0.00011095,2]
[351274094,1738505452598,-500.0,0.00011095,2]
[351274095,1738505452609,-500.0,0.00011095,2]
[351274096,1738505452620,-793.33,0.00011095,2]
[351274097,1738505452630,-500.0,0.00011095,2]
[351274098,1738505452641,-500.0,0.00011095,2]
[351274099,1738505452651,-500.0,0.00011095,2]
[351274100,1738505452662,-1232.16,0.00011095,2]
[351274101,1738505452681,-500.0,0.00011095,2]
[351274102,1738505452691,-534.34,0.00011095,2]
[351274103,1738505452701,-588.54,0.00011095,2]
[351274104,1738505452711,-500.0,0.00011095,2]
[351274105,1738505452721,-538.87,0.00011095,2]
[351274106,1738505452731,-793.28,0.00011095,2]
[351274107,1738505452742,-537.06924038,0.00011095,2]
[351274108,1738505452752,-500.0,0.00011095,2]
[351274109,1738505452762,-1592.88,0.00011095,2]
[351274110,1738505452772,-616.53,0.00011095,2]
[351274111,1738505452782,-500.0,0.00011095,2]
[351274112,1738505452792,-500.0,0.00011095,2]
[351274113,1738505452802,-500.0,0.00011095,2]
[351274114,1738505452812,-1854.87,0.00011095,2]
[351274115,1738505452823,-474.40284005,0.00011095,2]
[351274116,1738505452833,-1690.33,0.00011095,2]
[351274117,1738505452843,-500.0,0.00011095,2]
[351274118,1738505452853,-534.43,0.00011095,2]
[351274119,1738505452863,-500.0,0.00011095,2]
[351274120,1738505452872,-500.0,0.00011095,2]
[351274121,1738505452882,-500.0,0.00011095,2]
[351274122,1738505452892,-500.0,0.00011095,2]
[351274123,1738505452903,-508.93,0.00011095,2]
[351274124,1738505452913,-500.0,0.00011095,2]
[351274125,1738505452923,-637.72,0.00011095,2]
[351274126,1738505452934,-500.0,0.00011095,2]
[351274127,1738505452944,-477.72740822,0.00011095,2]
[351274128,1738505452955,-1150.84,0.00011095,2]
[351274129,1738505452965,-536.65759293,0.00011095,2]
[351274130,1738505452975,-508.66,0.00011095,2]
[351274131,1738505452985,-509.72529153,0.00011095,2]
[351274132,1738505452995,-536.85863168,0.00011095,2]
[351274133,1738505453005,-500.0,0.00011095,2]
[351274134,1738505453016,-586.07,0.00011095,2]
[351274135,1738505453026,-500.0,0.00011095,2]
[351274136,1738505453036,-800.25,0.00011095,2]
[351274137,1738505453045,-731.54,0.00011095,2]
[351274138,1738505453055,-477.69341419,0.00011095,2]
[351274139,1738505453065,-500.0,0.00011095,2]
[351274140,1738505453075,-1305.07,0.00011095,2]
[351274141,1738505453086,-1841.9,0.00011095,2]
[351274142,1738505453095,-734.22,0.00011095,2]
[351274143,1738505453105,-500.0,0.00011095,2]
[351274144,1738505453115,-500.0,0.00011095,2]
[351274145,1738505453126,-1731.58,0.00011095,2]
[351274146,1738505453136,-573.1,0.00011095,2]
[351274147,1738505453146,-500.0,0.00011095,2]
[351274148,1738505453155,-500.0,0.00011095,2]
[351274149,1738505453165,-500.0,0.00011095,2]
[351274150,1738505453174,-1366.78,0.00011095,2]
[351274151,1738505453184,-500.0,0.00011095,2]
[351274152,1738505453193,-500.0,0.00011095,2]
[351274153,1738505453203,-521.42,0.00011095,2]
[351274154,1738505453214,-500.0,0.00011095,2]
[351274155,1738505453225,-1447.06,0.00011095,2]
[351274156,1738505453236,-500.0,0.00011095,2]
[351274157,1738505453246,-955.56,0.00011095,2]
[351274158,1738505453258,-446.93138986,0.00011095,2]
[351274159,1738505453268,-500.0,0.00011095,2]
[351274160,1738505453278,-500.0,0.00011095,2]
[351274161,1738505453288,-500.0,0.00011095,2]
[351274162,1738505453298,-904.27,0.00011095,2]
[351274163,1738505453308,-854.39,0.00011095,2]
[351274164,1738505453318,-500.0,0.00011095,2]
[351274165,1738505453328,-500.0,0.00011095,2]
[351274166,1738505453338,-2762.56,0.00011095,2]
[351274167,1738505453348,-500.0,0.00011095,2]
[351274168,1738505453358,-500.0,0.00011095,2]
[351274169,1738505453368,-500.0,0.00011095,2]
[351274170,1738505453378,-666.98,0.00011095,2]
[351274171,1738505453613,-500.0,0.00011095,2]
[351274172,1738505453654,-783.0,0.00011095,2]
[351274173,1738505453664,-500.0,0.00011095,2]
[351274174,1738505453673,-500.0,0.00011095,2]
[351274175,1738505453682,-500.0,0.00011095,2]
[351274176,1738505453692,-500.0,0.00011095,2]
[351274177,1738505453702,-2104.01,0.00011095,2]
[351274178,1738505453711,-2287.85,0.00011095,2]
[351274179,1738505453720,-500.0,0.00011095,2]
[351274180,1738505453729,-500.0,0.00011095,2]
[351274181,1738505453739,-944.74,0.00011095,2]
[351274182,1738505453749,-505.82,0.00011095,2]
[351274183,1738505453760,-738.27,0.00011095,2]
[351274184,1738505453769,-500.0,0.00011095,2]
[351274185,1738505453780,-500.0,0.00011095,2]
[351274186,1738505453790,-1519.92,0.00011095,2]
[351274187,1738505453799,-1297.85,0.00011095,2]
[351274188,1738505453808,-500.0,0.00011095,2]
[351274189,1738505453818,-500.0,0.00011095,2]
[351274190,1738505453828,-500.0,0.00011095,2]
[351274191,1738505453838,-500.0,0.00011095,2]
[351274192,1738505453847,-233.13619173,0.00011095,2]
[351274193,1738505453857,-500.0,0.00011095,2]
[351274194,1738505453867,-500.0,0.00011095,2]
[351274195,1738505453876,-500.0,0.00011095,2]
[351274196,1738505453886,-500.0,0.00011095,2]
[351274197,1738505453895,-643.77,0.00011095,2]
[351274198,1738505453904,-784.02,0.00011095,2]
[351274199,1738505453914,-500.0,0.00011095,2]
[351274200,1738505453923,-500.0,0.00011095,2]
[351274201,1738505453933,-500.0,0.00011095,2]
[351274202,1738505453942,-500.0,0.00011095,2]
[351274203,1738505453952,-500.0,0.00011095,2]
[351274204,1738505453961,-500.0,0.00011095,2]
[351274205,1738505453971,-500.0,0.00011095,2]
[351274206,1738505453980,-513.56933056,0.00011095,2]
[351274207,1738505453990,-500.0,0.00011095,2]
[351274208,1738505453999,-500.0,0.00011095,2]
[351274209,1738505454009,-500.0,0.00011095,2]
[351274210,1738505454019,-529.45,0.00011095,2]
[351274211,1738505454028,-1418.55,0.00011095,2]
[351274212,1738505454038,-500.0,0.00011095,2]
[351274213,1738505454047,-500.0,0.00011095,2]
[351274214,1738505454057,-517.07,0.00011095,2]
[351274215,1738505454066,-500.0,0.00011095,2]
[351274216,1738505454075,-500.0,0.00011095,2]
[351274217,1738505454085,-500.0,0.00011095,2]
[351274218,1738505454094,-2783.69,0.00011095,2]
[351274219,1738505454103,-1420.23,0.00011095,2]
[351274220,1738505454112,-2181.51,0.00011095,2]
[351274221,1738505454122,-1225.35,0.00011095,2]
[351274222,1738505454131,-500.0,0.00011095,2]
[351274223,1738505454140,-500.0,0.00011095,2]
[351274224,1738505454150,-500.0,0.00011095,2]
[351274225,1738505454159,-500.0,0.00011095,2]
[351274226,1738505454169,-500.0,0.00011095,2]
[351274227,1738505454178,-500.0,0.00011095,2]
[351274228,1738505454188,-942.19,0.00011095,2]
[351274229,1738505454197,-500.0,0.00011095,2]
[351274230,1738505454207,-844.52,0.00011095,2]
[351274231,1738505454216,-507.86,0.00011095,2]
[351274232,1738505454226,-500.0,0.00011095,2]
[351274233,1738505454235,-500.0,0.00011095,2]
[351274234,1738505454245,-1267.86,0.00011095,2]
[351274235,1738505454255,-500.0,0.00011095,2]
[351274236,1738505454264,-500.0,0.00011095,2]
[351274237,1738505454274,-500.0,0.00011095,2]
[351274238,1738505454283,-500.0,0.00011095,2]
[351274239,1738505454293,-1642.95,0.00011095,2]
[351274240,1738505454302,-500.0,0.00011095,2]
[351274241,1738505454312,-5000.0,0.00011095,2]
[351274242,1738505454321,-500.0,0.00011095,2]
[351274243,1738505454331,-419.99782913,0.00011095,2]
[351274244,1738505454340,-632.5,0.00011095,2]
[351274245,1738505454350,-500.0,0.00011095,2]
[351274246,1738505454360,-717.96,0.00011095,2]
[351274247,1738505454369,-500.0,0.00011095,2]
[351274248,1738505454379,-862.89,0.00011095,2]
[351274249,1738505454389,-500.0,0.00011095,2]
[351274250,1738505454398,-500.0,0.00011095,2]
[351274251,1738505454409,-500.0,0.00011095,2]
[351274252,1738505454419,-978.15,0.00011095,2]
[351274253,1738505454428,-500.0,0.00011095,2]
[351274254,1738505454438,-1851.1,0.00011095,2]
[351274255,1738505454448,-591.76,0.00011095,2]
[351274256,1738505454458,-722.67,0.00011095,2]
[351274257,1738505454469,-500.0,0.00011095,2]
[351274258,1738505454478,-500.0,0.00011095,2]
[351274259,1738505454488,-500.0,0.00011095,2]
[351274260,1738505454497,-500.0,0.00011095,2]
[351274261,1738505454507,-520.38,0.00011095,2]
[351274262,1738505454520,-500.0,0.00011095,2]
[351274263,1738505454530,-500.0,0.00011095,2]
[351274264,1738505454539,-1708.12,0.00011095,2]
[351274265,1738505454551,-523.57,0.00011095,2]
[351274266,1738505454564,-500.0,0.00011095,2]
[351274267,1738505454575,-500.0,0.00011095,2]
[351274268,1738505454585,-760.88,0.00011095,2]
[351274269,1738505454598,-500.0,0.00011095,2]
[351274270,1738505454607,-500.0,0.00011095,2]
[351274271,1738505454619,-462.88684597,0.00011095,2]
[351274272,1738505454629,-500.0,0.00011095,2]
[351274273,1738505454639,-500.0,0.00011095,2]
[351274274,1738505454648,-500.0,0.00011095,2]
[351274275,1738505454657,-811.43,0.00011095,2]
[351274276,1738505454667,-500.0,0.00011095,2]
[351274277,1738505454679,-1175.0,0.00011095,2]
[351274278,1738505454688,-1373.61,0.00011095,2]
[351274279,1738505454698,-747.24,0.00011095,2]
[351274280,1738505454707,-1105.09,0.00011095,2]
[351274281,1738505454716,-500.0,0.00011095,2]
[351274282,1738505454726,-500.0,0.00011095,2]
[351274283,1738505454735,-1419.66,0.00011095,2]
[351274284,1738505454745,-549.62889803,0.00011095,2]
[351274285,1738505454754,-500.0,0.00011095,2]
[351274286,1738505454763,-899.67,0.00011095,2]
[351274287,1738505454772,-500.0,0.00011095,2]
[351274288,1738505454782,-500.0,0.00011095,2]
[351274289,1738505454791,-500.0,0.00011095,2]
[351274290,1738505454801,-814.85,0.00011095,2]
[351274291,1738505454811,-500.0,0.00011095,2]
[351274292,1738505454821,-967.34,0.00011095,2]
[351274293,1738505454831,-984.06,0.00011095,2]
[351274294,1738505454841,-500.0,0.00011095,2]
[351274295,1738505454851,-500.0,0.00011095,2]
[351274296,1738505454861,-413.50227315,0.00011095,2]
[351274297,1738505454871,-500.0,0.00011095,2]
[351274298,1738505454880,-500.0,0.00011095,2]
[351274299,1738505454889,-709.72,0.00011095,2]
[351274300,1738505454899,-500.0,0.00011095,2]
[351274301,1738505454909,-500.0,0.00011095,2]
[351274302,1738505454919,-500.0,0.00011095,2]
[351274303,1738505454928,-500.0,0.00011095,2]
[351274304,1738505454937,-500.0,0.00011095,2]
[351274305,1738505454947,-580.72,0.00011095,2]
[351274306,1738505454956,-500.0,0.00011095,2]
[351274307,1738505454966,-509.47,0.00011095,2]
[351274308,1738505454975,-500.0,0.00011095,2]
[351274309,1738505454984,-1025.92,0.00011095,2]
[351274310,1738505454994,-513.57283372,0.00011095,2]
[351274311,1738505455003,-1529.4,0.00011095,2]
[351274312,1738505455012,-570.14239313,0.00011095,2]
[351274313,1738505455022,-515.97236148,0.00011095,2]
[351274314,1738505455031,-500.0,0.00011095,2]
[351274315,1738505455041,-500.0,0.00011095,2]
[351274316,1738505455050,-500.0,0.00011095,2]
[351274317,1738505455060,-560.45427777,0.00011095,2]
[351274318,1738505455069,-500.0,0.00011095,2]
[351274319,1738505455080,-500.0,0.00011095,2]
[351274320,1738505455093,-506.46935336,0.00011095,2]
[351274321,1738505455103,-736.8,0.00011095,2]
[351274322,1738505455112,-500.0,0.00011095,2]
[351274323,1738505455122,-500.0,0.00011095,2]
[351274324,1738505455131,-508.78283112,0.00011095,2]
[351274325,1738505455140,-500.0,0.00011095,2]
[351274326,1738505455150,-500.0,0.00011095,2]
[351274327,1738505455159,-500.0,0.00011095,2]
[351274328,1738505455168,-500.0,0.00011095,2]
[351274329,1738505455181,-500.0,0.00011095,2]
[351274330,1738505455191,-500.0,0.00011095,2]
[351274331,1738505455200,-500.0,0.00011095,2]
[351274332,1738505455209,-535.21812525,0.00011095,2]
[351274333,1738505455224,-500.0,0.00011095,2]
[351274334,1738505455234,-794.58,0.00011095,2]
[351274335,1738505455244,-500.0,0.00011095,2]
[351274336,1738505455253,-500.0,0.00011095,2]
[351274337,1738505455262,-515.19,0.00011095,2]
[351274338,1738505455272,-551.09,0.00011095,2]
[351274339,1738505455281,-507.74176115,0.00011095,2]
[351274340,1738505455291,-500.0,0.00011095,2]
[351274341,1738505455300,-500.0,0.00011095,2]
[351274342,1738505455310,-298.94474023,0.00011095,2]
[351274343,1738505455319,-1457.11,0.00011095,2]
[351274344,1738505455329,-500.0,0.00011095,2]
[351274345,1738505455339,-500.0,0.00011095,2]
[351274346,1738505455349,-500.0,0.00011095,2]
[351274347,1738505455358,-500.0,0.00011095,2]
[351274348,1738505455368,-500.0,0.00011095,2]
[351274349,1738505455377,-500.0,0.00011095,2]
[351274350,1738505455387,-848.94,0.00011095,2]
[351274351,1738505455396,-562.76,0.00011095,2]
[351274352,1738505455405,-500.0,0.00011095,2]
[351274353,1738505455415,-1457.16,0.00011095,2]
[351274354,1738505455425,-512.04,0.00011095,2]
[351274355,1738505455434,-500.0,0.00011095,2]
[351274356,1738505455444,-500.0,0.00011095,2]
[351274357,1738505455454,-536.29386055,0.00011095,2]
[351274358,1738505455463,-500.0,0.00011095,2]
[351274359,1738505455472,-1061.96,0.00011095,2]
[351274360,1738505455481,-1032.24,0.00011095,2]
[351274361,1738505455490,-510.71,0.00011095,2]
[351274362,1738505455500,-500.0,0.00011095,2]
[351274363,1738505455510,-356.47594203,0.00011095,2]
[351274364,1738505455524,-1015.65,0.00011095,2]
[351274365,1738505455534,-500.0,0.00011095,2]
[351274366,1738505455543,-1177.9,0.00011095,2]
[351274367,1738505455552,-679.22,0.00011095,2]
[351274368,1738505455563,-500.0,0.00011095,2]
[351274369,1738505455572,-248.10219,0.00011095,2]
[351274370,1738505455582,-500.0,0.00011095,2]
[351274371,1738505455593,-500.0,0.00011095,2]
[351274372,1738505455602,-584.42,0.00011095,2]
[351274373,1738505455612,-500.0,0.00011095,2]
[351274374,1738505455622,-248.10219,0.00011095,2]
[351274375,1738505455631,-500.0,0.00011095,2]
[351274376,1738505455640,-526.66791765,0.00011095,2]
[351274377,1738505455650,-441.32588595,0.00011095,2]
[351274378,1738505455659,-299.86522783,0.00011095,2]
[351274379,1738505455668,-500.0,0.00011095,2]
[351274380,1738505455677,-1657.79,0.00011095,2]
[351274381,1738505455686,-1057.32,0.00011095,2]
[351274382,1738505455696,-500.0,0.00011095,2]
[351274383,1738505455705,-500.0,0.00011095,2]
[351274384,1738505455715,-500.0,0.00011095,2]
[351274385,1738505455724,-500.0,0.00011095,2]
[351274386,1738505455733,-500.0,0.00011095,2]
[351274387,1738505455742,-588.56841787,0.00011095,2]
[351274388,1738505455751,-500.0,0.00011095,2]
[351274389,1738505455761,-512.00268754,0.00011095,2]
[351274390,1738505455770,-500.0,0.00011095,2]
[351274391,1738505455779,-500.0,0.00011095,2]
[351274392,1738505455788,-737.32,0.00011095,2]
[351274393,1738505455797,-865.79,0.00011095,2]
[351274394,1738505455806,-500.0,0.00011095,2]
[351274395,1738505455816,-500.0,0.00011095,2]
[351274396,1738505455825,-500.0,0.00011095,2]
[351274397,1738505455835,-1316.4,0.00011095,2]
[351274398,1738505455844,-671.26,0.00011095,2]
[351274399,1738505455853,-500.0,0.00011095,2]
[351274400,1738505455863,-500.0,0.00011095,2]
[351274401,1738505455872,-751.62,0.00011095,2]
[351274402,1738505455881,-750.62,0.00011095,2]
[351274403,1738505455890,-1011.53,0.00011095,2]
[351274404,1738505455899,-492.00854074,0.00011095,2]
[351274405,1738505455909,-500.0,0.00011095,2]
[351274406,1738505455918,-500.0,0.00011095,2]
[351274407,1738505455928,-330.82994796,0.00011095,2]
[351274408,1738505455937,-276.44158692,0.00011095,2]
[351274409,1738505456028,-500.0,0.00011095,2]
[351274410,1738505456037,-500.0,0.00011095,2]
[351274411,1738505456046,-500.0,0.00011095,2]
[351274412,1738505456055,-1248.28,0.00011095,2]
[351274413,1738505456064,-519.27,0.00011095,2]
[351274414,1738505456073,-500.0,0.00011095,2]
[351274415,1738505456082,-775.41,0.00011095,2]
[351274416,1738505456091,-500.0,0.00011095,2]
[351274417,1738505456100,-500.0,0.00011095,2]
[351274418,1738505456109,-413.76420065,0.00011095,2]
[351274419,1738505456118,-650.78,0.00011095,2]
[351274420,1738505456127,-500.0,0.00011095,2]
[351274421,1738505456136,-300.0,0.00011095,2]
[351274422,1738505456145,-500.0,0.00011095,2]
[351274423,1738505456155,-500.0,0.00011095,2]
[351274424,1738505456164,-500.0,0.00011095,2]
[351274425,1738505456173,-787.2,0.00011095,2]
[351274426,1738505456182,-500.0,0.00011095,2]
[351274427,1738505456191,-500.0,0.00011095,2]
[351274428,1738505456200,-500.0,0.00011095,2]
[351274429,1738505456209,-500.0,0.00011095,2]
[351274430,1738505456229,-1398.59,0.00011095,2]
[351274431,1738505456242,-2098.34,0.00011095,2]
[351274432,1738505456251,-500.0,0.00011095,2]
[351274433,1738505456260,-500.0,0.00011095,2]
[351274434,1738505456269,-1717.3,0.00011095,2]
[351274435,1738505456278,-500.0,0.00011095,2]
[351274436,1738505456287,-535.92,0.00011095,2]
[351274437,1738505456297,-500.0,0.00011095,2]
[351274438,1738505456306,-500.0,0.00011095,2]
[351274439,1738505456315,-520.83,0.00011095,2]
[351274440,1738505456324,-500.0,0.00011095,2]
[351274441,1738505456334,-500.0,0.00011095,2]
[351274442,1738505456343,-500.0,0.00011095,2]
[351274443,1738505456352,-1388.03,0.00011095,2]
[351274444,1738505456361,-505.05002518,0.00011095,2]
[351274445,1738505456370,-696.21,0.00011095,2]
[351274446,1738505456379,-1438.93,0.00011095,2]
[351274447,1738505456389,-638.42,0.00011095,2]
[351274448,1738505456398,-1523.64,0.00011095,2]
[351274449,1738505456407,-500.0,0.00011095,2]
[351274450,1738505456416,-413.59479999,0.00011095,2]
[351274451,1738505456425,-500.0,0.00011095,2]
[351274452,1738505456435,-500.0,0.00011095,2]
[351274453,1738505456444,-1164.79,0.00011095,2]
[351274454,1738505456454,-500.0,0.00011095,2]
[351274455,1738505456464,-500.0,0.00011095,2]
[351274456,1738505456473,-500.0,0.00011095,2]
[351274457,1738505456482,-2008.34,0.00011095,2]
[351274458,1738505456492,-500.0,0.00011095,2]
[351274459,1738505456501,-500.0,0.00011095,2]
[351274460,1738505456511,-867.5,0.00011095,2]
[351274461,1738505456526,-500.0,0.00011095,2]
[351274462,1738505456535,-500.0,0.00011095,2]
[351274463,1738505456544,-500.0,0.00011095,2]
[351274464,1738505456554,-500.0,0.00011095,2]
[351274465,1738505456564,-500.0,0.00011095,2]
[351274466,1738505456573,-930.83,0.00011095,2]
[351274467,1738505456582,-1142.86,0.00011095,2]
[351274468,1738505456591,-1063.97,0.00011095,2]